fUST/lending_fUST_20241112
["ID","MTS","AMOUNT","RATE_DAILY","PERIOD"]
[342030331,1731371462774,-500.0,0.00023287,2]
[342030332,1731371462784,-571.38,0.00023287,2]
[342030333,1731371462794,-500.0,0.00023287,2]
[342030334,1731371462807,-500.0,0.00023287,2]
[342030335,1731371462819,-500.0,0.00023287,2]
[342030336,1731371462829,-500.0,0.00023287,2]
[342030337,1731371462843,-500.0,0.00023287,2]
[342030338,1731371462852,-512.66,0.00023287,2]
[342030339,1731371462861,-500.0,0.00023287,2]
[342030340,1731371462871,-500.0,0.00023287,2]
[342030341,1731371462880,-500.0,0.00023287,2]
[342030342,1731371462889,-500.0,0.00023287,2]
[342030343,1731371462898,-500.0,0.00023287,2]
[342030344,1731371462908,-500.0,0.00023287,2]
[342030345,1731371462918,-500.0,0.00023287,2]
[342030346,1731371462927,-818.1,0.00023287,2]
[342030347,1731371462937,-500.0,0.00023287,2]
[342030348,1731371462946,-500.0,0.00023287,2]
[342030349,1731371462956,-500.0,0.00023287,2]
[342030350,1731371462966,-500.0,0.00023287,2]
[342030351,1731371462975,-443.7,0.00023287,2]
[342030352,1731371462985,-604.51,0.00023287,2]
[342030353,1731371462995,-532.17,0.00023287,2]
[342030354,1731371463005,-500.0,0.00023287,2]
[342030355,1731371463015,-500.0,0.00023287,2]
[342030356,1731371463025,-500.0,0.00023287,2]
[342030357,1731371463036,-500.0,0.00023287,2]
[342030358,1731371463047,-600.99,0.00023287,2]
[342030359,1731371463057,-742.99,0.00023287,2]
[342030360,1731371463068,-500.0,0.00023287,2]
[342030361,1731371463079,-551.41,0.00023287,2]
[342030362,1731371463095,-500.0,0.00023287,2]
[342030363,1731371463106,-500.0,0.00023287,2]
[342030364,1731371463116,-500.0,0.00023287,2]
[342030365,1731371463126,-500.0,0.00023287,2]
[342030366,1731371463136,-500.0,0.00023287,2]
[342030367,1731371463146,-500.0,0.00023287,2]
[342030368,1731371463156,-500.0,0.00023287,2]
[342030369,1731371463167,-1952.22,0.00023287,2]
[342030370,1731371463177,-500.0,0.00023287,2]
[342030371,1731371463187,-2363.81,0.00023287,2]
[342030372,1731371463196,-500.0,0.00023287,2]
[342030373,1731371463207,-500.0,0.00023287,2]
[342030374,1731371463216,-500.0,0.00023287,2]
[342030375,1731371463226,-445.98387988,0.00023287,2]
[342030376,1731371463236,-886.21,0.00023287,2]
[342030377,1731371463246,-4397.46,0.00023287,2]
[342030378,1731371463255,-685.21,0.00023287,2]
[342030379,1731371463265,-529.71,0.00023287,2]
[342030380,1731371463275,-1000.0,0.00023342,2]
[342030381,1731371463285,-563.06951639,0.00023342,2]
[342030382,1731371463301,-1000.0,0.00023342,2]
[342030383,1731371463311,-514.5088069,0.00023342,2]
[342030384,1731371463321,-1000.0,0.00023342,2]
[342030385,1731371463331,-4859.0,0.00023413,4]
[342030386,1731371463348,-166.666666,0.00023456,2]
[342030387,1731371463358,-1000.0,0.00023542,2]
[342030388,1731371463369,-510.09423931,0.00023542,2]
[342030389,1731371463379,-1000.0,0.00023542,2]
[342030390,1731371463391,-1000.0,0.00023542,2]
[342030391,1731371463400,-1000.0,0.00023542,2]
[342030392,1731371463410,-1000.0,0.00023542,2]
[342030393,1731371463420,-500.0,0.00023561,2]
[342030394,1731371463430,-500.0,0.00023561,2]
[342030395,1731371463440,-3125.84,0.00023561,2]
[342030396,1731371463451,-500.0,0.00023561,2]
[342030397,1731371463461,-500.0,0.00023561,2]
[342030398,1731371463472,-500.0,0.00023561,2]
[342030399,1731371463482,-532.53,0.00023561,2]
[342030400,1731371463492,-500.0,0.00023561,2]
[342030401,1731371463502,-500.0,0.00023561,2]
[342030402,1731371463512,-500.0,0.00023561,2]
[342030403,1731371463523,-654.56,0.00023561,2]
[342030404,1731371463533,-500.0,0.00023561,2]
[342030405,1731371463542,-500.0,0.00023561,2]
[342030406,1731371463553,-500.0,0.00023561,2]
[342030407,1731371463563,-500.0,0.00023561,2]
[342030408,1731371463573,-500.0,0.00023561,2]
[342030409,1731371463583,-267.48,0.00023561,2]
[342030410,1731371463600,-500.0,0.00023561,2]
[342030411,1731371463610,-500.0,0.00023561,2]
[342030412,1731371463621,-500.0,0.00023561,2]
[342030413,1731371463630,-500.0,0.00023561,2]
[342030414,1731371463674,-500.0,0.00023561,2]
[342030415,1731371463684,-604.18,0.00023561,2]
[342030416,1731371463695,-512.08,0.00023561,2]
[342030417,1731371463706,-500.0,0.00023561,2]
[342030418,1731371463716,-500.0,0.00023561,2]
[342030419,1731371463725,-571.38,0.00023561,2]
[342030420,1731371463735,-500.0,0.00023561,2]
[342030421,1731371463744,-500.0,0.00023561,2]
[342030422,1731371463754,-500.0,0.00023561,2]
[342030423,1731371463763,-500.0,0.00023561,2]
[342030424,1731371463773,-500.0,0.00023561,2]
[342030425,1731371463783,-500.0,0.00023561,2]
[342030426,1731371463793,-512.66,0.00023561,2]
[342030427,1731371463802,-500.0,0.00023561,2]
[342030428,1731371463811,-500.0,0.00023561,2]
[342030429,1731371463821,-500.0,0.00023561,2]
[342030430,1731371463831,-570.04230105,0.00023561,2]
[342030431,1731371463844,-500.0,0.00023561,2]
[342030432,1731371463853,-818.1,0.00023561,2]
[342030433,1731371463862,-500.0,0.00023561,2]
[342030434,1731371463872,-366.18176532,0.00023561,2]
[342030435,1731371463882,-500.0,0.00023561,2]
[342030436,1731371463893,-500.0,0.00023561,2]
[342030437,1731371463903,-604.51,0.00023561,2]
[342030438,1731371463913,-532.17,0.00023561,2]
[342030439,1731371463923,-500.0,0.00023561,2]
[342030440,1731371463933,-500.0,0.00023561,2]
[342030441,1731371463942,-501.00628975,0.00023561,2]
[342030442,1731371463951,-500.0,0.00023561,2]
[342030443,1731371463961,-600.99,0.00023561,2]
[342030444,1731371463972,-742.99,0.00023561,2]
[342030445,1731371463982,-500.0,0.00023561,2]
[342030446,1731371463992,-551.41,0.00023561,2]
[342030447,1731371464002,-500.0,0.00023561,2]
[342030448,1731371464012,-500.0,0.00023561,2]
[342030449,1731371464022,-500.0,0.00023561,2]
[342030450,1731371464032,-500.0,0.00023561,2]
[342030451,1731371464042,-500.0,0.00023561,2]
[342030452,1731371464052,-500.0,0.00023561,2]
[342030453,1731371464061,-500.0,0.00023561,2]
[342030454,1731371464071,-1952.22,0.00023561,2]
[342030455,1731371464081,-500.0,0.00023561,2]
[342030456,1731371464094,-2363.81,0.00023561,2]
[342030457,1731371464103,-500.0,0.00023561,2]
[342030458,1731371464113,-500.0,0.00023561,2]
[342030459,1731371464122,-886.21,0.00023561,2]
[342030460,1731371464131,-4397.46,0.00023561,2]
[342030461,1731371464141,-685.21,0.00023561,2]
[342030462,1731371464150,-529.71,0.00023561,2]
[342030463,1731371464159,-500.0,0.00023835,2]
[342030464,1731371464169,-3125.84,0.00023835,2]
[342030465,1731371464179,-626.60735358,0.00023835,2]
[342030466,1731371464188,-500.0,0.00023835,2]
[342030467,1731371464197,-500.0,0.00023835,2]
[342030468,1731371464206,-532.53,0.00023835,2]
[342030469,1731371464215,-500.0,0.00023835,2]
[342030470,1731371464225,-500.0,0.00023835,2]
[342030471,1731371464234,-500.0,0.00023835,2]
[342030472,1731371464243,-654.56,0.00023835,2]
[342030473,1731371464253,-500.0,0.00023835,2]
[342030474,1731371464263,-201.90418871,0.00023835,2]
[342030475,1731371464272,-500.0,0.00023835,2]
[342030476,1731371464282,-393.11911515,0.00023835,2]
[342030477,1731371464293,-535.01,0.00023835,2]
[342030478,1731371464306,-500.0,0.00023835,2]
[342030479,1731371464315,-500.0,0.00023835,2]
[342030480,1731371464325,-500.0,0.00023835,2]
[342030481,1731371464334,-604.18,0.00023835,2]
[342030482,1731371464346,-500.0,0.00023835,2]
[342030483,1731371464355,-500.0,0.00023835,2]
[342030484,1731371464365,-571.38,0.00023835,2]
[342030485,1731371464376,-500.0,0.00023835,2]
[342030486,1731371464386,-500.0,0.00023835,2]
[342030487,1731371464395,-487.39,0.00023835,2]
[342030488,1731371464404,-500.0,0.00023835,2]
[342030489,1731371464413,-500.0,0.00023835,2]
[342030490,1731371464423,-576.08450481,0.00023835,2]
[342030491,1731371464433,-512.66,0.00023835,2]
[342030492,1731371464443,-500.0,0.00023835,2]
[342030493,1731371464453,-200.29,0.00023835,2]
[342030494,1731371464463,-500.0,0.00023835,2]
[342030495,1731371464472,-528.01376602,0.00023835,2]
[342030496,1731371464482,-818.1,0.00023835,2]
[342030497,1731371464492,-500.0,0.00023835,2]
[342030498,1731371464501,-500.0,0.00023835,2]
[342030499,1731371464511,-256.70299187,0.00023835,2]
[342030500,1731371464520,-604.51,0.00023835,2]
[342030501,1731371464530,-532.17,0.00023835,2]
[342030502,1731371464541,-500.0,0.00023835,2]
[342030503,1731371464551,-500.0,0.00023835,2]
[342030504,1731371464560,-500.0,0.00023835,2]
[342030505,1731371464571,-600.99,0.00023835,2]
[342030506,1731371464581,-742.99,0.00023835,2]
[342030507,1731371464594,-500.0,0.00023835,2]
[342030508,1731371464604,-551.41,0.00023835,2]
[342030509,1731371464614,-500.0,0.00023835,2]
[342030510,1731371464624,-500.0,0.00023835,2]
[342030511,1731371464634,-166.86486162,0.00023835,2]
[342030512,1731371464643,-537.96,0.00023835,2]
[342030513,1731371464653,-500.0,0.00023835,2]
[342030514,1731371464663,-500.0,0.00023835,2]
[342030515,1731371464672,-1952.22,0.00023835,2]
[342030516,1731371464682,-500.0,0.00023835,2]
[342030517,1731371464692,-2363.81,0.00023835,2]
[342030518,1731371464701,-500.0,0.00023835,2]
[342030519,1731371464711,-500.0,0.00023835,2]
[342030520,1731371464721,-886.21,0.00023835,2]
[342030521,1731371464730,-4397.46,0.00023835,2]
[342030522,1731371464740,-685.21,0.00023835,2]
[342030523,1731371464749,-529.71,0.00023835,2]
[342030524,1731371464758,-166.666666,0.00023969,2]
[342030525,1731371464767,-530.0,0.00023991,2]
[342030526,1731371464777,-1123.0,0.00023991,2]
[342030527,1731371464786,-2390.0,0.00023991,2]
[342030528,1731371464795,-199.788099,0.00024109,7]
[342030529,1731371464804,-151.0,0.00024109,7]
[342030530,1731371464813,-500.0,0.00024109,2]
[342030531,1731371464822,-3125.84,0.00024109,2]
[342030532,1731371464832,-598.8043063,0.00024109,2]
[342030533,1731371464845,-544.05113803,0.00024109,2]
[342030534,1731371464854,-532.53,0.00024109,2]
[342030535,1731371464864,-500.0,0.00024109,2]
[342030536,1731371464874,-500.0,0.00024109,2]
[342030537,1731371464883,-500.0,0.00024109,2]
[342030538,1731371464892,-654.56,0.00024109,2]
[342030539,1731371464901,-500.0,0.00024109,2]
[342030540,1731371464910,-500.0,0.00024109,2]
[342030541,1731371464920,-500.0,0.00024109,2]
[342030542,1731371464929,-500.0,0.00024109,2]
[342030543,1731371464938,-500.0,0.00024109,2]
[342030544,1731371464947,-604.18,0.00024109,2]
[342030545,1731371464956,-500.0,0.00024109,2]
[342030546,1731371464965,-571.38,0.00024109,2]
[342030547,1731371464974,-262.34,0.00024109,2]
[342030548,1731371464983,-500.0,0.00024109,2]
[342030549,1731371464992,-500.0,0.00024109,2]
[342030550,1731371465001,-500.0,0.00024109,2]
[342030551,1731371465011,-512.66,0.00024109,2]
[342030552,1731371465019,-500.0,0.00024109,2]
[342030553,1731371465029,-500.0,0.00024109,2]
[342030554,1731371465037,-818.1,0.00024109,2]
[342030555,1731371465046,-500.0,0.00024109,2]
[342030556,1731371465056,-500.0,0.00024109,2]
[342030557,1731371465067,-604.51,0.00024109,2]
[342030558,1731371465077,-532.17,0.00024109,2]
[342030559,1731371465086,-500.0,0.00024109,2]
[342030560,1731371465098,-500.0,0.00024109,2]
[342030561,1731371465108,-179.16,0.00024109,2]
[342030562,1731371465118,-600.99,0.00024109,2]
[342030563,1731371465127,-742.99,0.00024109,2]
[342030564,1731371465137,-500.0,0.00024109,2]
[342030565,1731371465147,-551.41,0.00024109,2]
[342030566,1731371465156,-500.0,0.00024109,2]
[342030567,1731371465167,-565.31228808,0.00024109,2]
[342030568,1731371465177,-274.9647236,0.00024109,2]
[342030569,1731371465186,-1952.22,0.00024109,2]
[342030570,1731371465195,-500.0,0.00024109,2]
[342030571,1731371465205,-2363.81,0.00024109,2]
[342030572,1731371465215,-500.0,0.00024109,2]
[342030573,1731371465224,-500.0,0.00024109,2]
[342030574,1731371465233,-886.21,0.00024109,2]
[342030575,1731371465243,-4397.46,0.00024109,2]
[342030576,1731371465252,-685.21,0.00024109,2]
[342030577,1731371465261,-159.0,0.00024164,2]
[342030578,1731371465271,-345.0,0.00024164,2]
[342030579,1731371465280,-153.0,0.00024192,2]
[342030580,1731371465293,-500.0,0.00024383,2]
[342030581,1731371465302,-3125.84,0.00024383,2]
[342030582,1731371465312,-532.53,0.00024383,2]
[342030583,1731371465321,-500.0,0.00024383,2]
[342030584,1731371465331,-500.0,0.00024383,2]
[342030585,1731371465343,-500.0,0.00024383,2]
[342030586,1731371465352,-654.56,0.00024383,2]
[342030587,1731371465361,-500.0,0.00024383,2]
[342030588,1731371465371,-500.0,0.00024383,2]
[342030589,1731371465383,-500.0,0.00024383,2]
[342030590,1731371465393,-500.0,0.00024383,2]
[342030591,1731371465403,-500.0,0.00024383,2]
[342030592,1731371465413,-604.18,0.00024383,2]
[342030593,1731371465423,-500.0,0.00024383,2]
[342030594,1731371465432,-571.38,0.00024383,2]
[342030595,1731371465442,-632.65,0.00024383,2]
[342030596,1731371465451,-500.0,0.00024383,2]
[342030597,1731371465461,-500.0,0.00024383,2]
[342030598,1731371465471,-512.66,0.00024383,2]
[342030599,1731371465480,-500.0,0.00024383,2]
[342030600,1731371465490,-500.0,0.00024383,2]
[342030601,1731371465499,-818.1,0.00024383,2]
[342030602,1731371465509,-500.0,0.00024383,2]
[342030603,1731371465520,-500.0,0.00024383,2]
[342030604,1731371465530,-604.51,0.00024383,2]
[342030605,1731371465541,-532.17,0.00024383,2]
[342030606,1731371465551,-641.74615555,0.00024383,2]
[342030607,1731371465561,-500.0,0.00024383,2]
[342030608,1731371465571,-600.99,0.00024383,2]
[342030609,1731371465582,-742.99,0.00024383,2]
[342030610,1731371465598,-500.0,0.00024383,2]
[342030611,1731371465608,-551.41,0.00024383,2]
[342030612,1731371465619,-500.0,0.00024383,2]
[342030613,1731371465630,-1952.22,0.00024383,2]
[342030614,1731371465640,-500.0,0.00024383,2]
[342030615,1731371465651,-2363.81,0.00024383,2]
[342030616,1731371465661,-500.0,0.00024383,2]
[342030617,1731371465673,-500.0,0.00024383,2]
[342030618,1731371465683,-886.21,0.00024383,2]
[342030619,1731371465694,-4397.46,0.00024383,2]
[342030620,1731371465704,-685.21,0.00024383,2]
[342030621,1731371465713,-166.666666,0.00024482,2]
[342030622,1731371465723,-304.87451631,0.00024657,2]
[342030623,1731371465732,-3125.84,0.00024657,2]
[342030624,1731371465741,-532.53,0.00024657,2]
[342030625,1731371465751,-500.0,0.00024657,2]
[342030626,1731371465761,-500.0,0.00024657,2]
[342030627,1731371465771,-500.0,0.00024657,2]
[342030628,1731371465780,-654.56,0.00024657,2]
[342030629,1731371465790,-500.0,0.00024657,2]
[342030630,1731371465799,-500.0,0.00024657,2]
[342030631,1731371465809,-251.91928901,0.00024657,2]
[342030632,1731371465818,-500.0,0.00024657,2]
[342030633,1731371465828,-625.44400161,0.00024657,2]
[342030634,1731371465838,-604.18,0.00024657,2]
[342030635,1731371465850,-538.8424906,0.00024657,2]
[342030636,1731371465859,-571.38,0.00024657,2]
[342030637,1731371465869,-500.0,0.00024657,2]
[342030638,1731371465879,-500.0,0.00024657,2]
[342030639,1731371465889,-512.66,0.00024657,2]
[342030640,1731371465898,-500.0,0.00024657,2]
[342030641,1731371465907,-500.0,0.00024657,2]
[342030642,1731371465917,-818.1,0.00024657,2]
[342030643,1731371465926,-500.0,0.00024657,2]
[342030644,1731371465936,-500.0,0.00024657,2]
[342030645,1731371465947,-604.51,0.00024657,2]
[342030646,1731371465957,-532.17,0.00024657,2]
[342030647,1731371465967,-500.0,0.00024657,2]
[342030648,1731371465977,-600.99,0.00024657,2]
[342030649,1731371465987,-742.99,0.00024657,2]
[342030650,1731371465997,-500.0,0.00024657,2]
[342030651,1731371466007,-551.41,0.00024657,2]
[342030652,1731371466017,-500.0,0.00024657,2]
[342030653,1731371466027,-1952.22,0.00024657,2]
[342030654,1731371466036,-500.0,0.00024657,2]
[342030655,1731371466046,-2363.81,0.00024657,2]
[342030656,1731371466056,-500.0,0.00024657,2]
[342030657,1731371466066,-500.0,0.00024657,2]
[342030658,1731371466077,-886.21,0.00024657,2]
[342030659,1731371466088,-4397.46,0.00024657,2]
[342030660,1731371466101,-685.21,0.00024657,2]
[342030661,1731371466110,-500.0,0.00024658,2]
[342030662,1731371466120,-500.0,0.00024658,2]
[342030663,1731371466129,-500.0,0.00024658,2]
[342030664,1731371466138,-462.13811897,0.00024658,2]
[342030665,1731371466147,-500.0,0.00024658,2]
[342030666,1731371466157,-500.0,0.00024658,2]
[342030667,1731371466166,-500.0,0.00024658,2]
[342030668,1731371466176,-500.0,0.00024658,2]
[342030669,1731371466185,-500.0,0.00024658,2]
[342030670,1731371466195,-500.0,0.00024658,2]
[342030671,1731371466204,-500.0,0.00024658,2]
[342030672,1731371466213,-500.0,0.00024658,2]
[342030673,1731371466223,-500.0,0.00024658,2]
[342030674,1731371466232,-500.0,0.00024658,2]
[342030675,1731371466241,-500.0,0.00024658,2]
[342030676,1731371466250,-500.0,0.00024658,2]
[342030677,1731371466259,-646.726589,0.00024658,2]
[342030678,1731371466268,-500.0,0.00024658,2]
[342030679,1731371466278,-500.0,0.00024658,2]
[342030680,1731371466288,-500.0,0.00024658,2]
[342030681,1731371466298,-500.0,0.00024658,2]
[342030682,1731371466312,-500.0,0.00024658,2]
[342030683,1731371466322,-238.52517655,0.00024658,2]
[342030684,1731371466332,-2145.5,0.000247,14]
[342030685,1731371466344,-13825.76,0.000247,14]
[342030686,1731371466353,-1051.02,0.000247,14]
[342030687,1731371466363,-587.0,0.00024781,2]
[342030688,1731371466373,-614.0,0.000248,2]
[342030689,1731371466384,-849.31375948,0.00024886,2]
[342030690,1731371466394,-3125.84,0.00024931,2]
[342030691,1731371466403,-532.53,0.00024931,2]
[342030692,1731371466413,-500.0,0.00024931,2]
[342030693,1731371466422,-500.0,0.00024931,2]
[342030694,1731371466432,-500.0,0.00024931,2]
[342030695,1731371466441,-654.56,0.00024931,2]
[342030696,1731371466451,-500.0,0.00024931,2]
[342030697,1731371466460,-500.0,0.00024931,2]
[342030698,1731371466470,-500.0,0.00024931,2]
[342030699,1731371466480,-604.18,0.00024931,2]
[342030700,1731371466490,-571.38,0.00024931,2]
[342030701,1731371466499,-500.0,0.00024931,2]
[342030702,1731371466509,-500.0,0.00024931,2]
[342030703,1731371466518,-512.66,0.00024931,2]
[342030704,1731371466528,-500.0,0.00024931,2]
[342030705,1731371466537,-500.0,0.00024931,2]
[342030706,1731371466547,-818.1,0.00024931,2]
[342030707,1731371466556,-500.0,0.00024931,2]
[342030708,1731371466566,-500.0,0.00024931,2]
[342030709,1731371466577,-604.51,0.00024931,2]
[342030710,1731371466586,-532.17,0.00024931,2]
[342030711,1731371466599,-500.0,0.00024931,2]
[342030712,1731371466609,-600.99,0.00024931,2]
[342030713,1731371466619,-742.99,0.00024931,2]
[342030714,1731371466629,-500.0,0.00024931,2]
[342030715,1731371466639,-551.41,0.00024931,2]
[342030716,1731371466650,-500.0,0.00024931,2]
[342030717,1731371466660,-1952.22,0.00024931,2]
[342030718,1731371466670,-500.0,0.00024931,2]
[342030719,1731371466680,-2363.81,0.00024931,2]
[342030720,1731371466690,-500.0,0.00024931,2]
[342030721,1731371466700,-302.35049882,0.00024931,2]
[342030722,1731371466709,-886.21,0.00024931,2]
[342030723,1731371466719,-4397.46,0.00024931,2]
[342030724,1731371466729,-1040.24817633,0.00025,2]
[342030725,1731371466739,-1000.0,0.00025,5]
[342030726,1731371466748,-82198.85087849,0.00025,2]
[342030727,1731371466909,-257.51739947,0.00025,2]
[342030728,1731371466931,-1434.54752282,0.00021917,2]
[342030729,1731371466940,-529.71,0.00024109,2]
[342030730,1731371466949,-37732.00909965,0.00025,2]
[342030731,1731371467494,-500.0,0.00021917,2]
[342030732,1731371467504,-500.0,0.00021917,2]
[342030733,1731371467513,-252.0,0.00022,2]
[342030734,1731371467523,-500.0,0.00022191,2]
[342030735,1731371467532,-252.0,0.00022192,2]
[342030736,1731371467542,-500.0,0.00022465,2]
[342030737,1731371467551,-500.0,0.00022739,2]
[342030738,1731371467561,-1002.20234548,0.00022817,2]
[342030739,1731371467570,-500.0,0.00023013,2]
[342030740,1731371467580,-500.0,0.00023287,2]
[342030741,1731371467589,-500.0,0.00023561,2]
[342030742,1731371467603,-500.0,0.00023835,2]
[342030743,1731371467612,-500.0,0.00024109,2]
[342030744,1731371467622,-529.71,0.00024383,2]
[342030745,1731371467631,-529.71,0.00024657,2]
[342030746,1731371467640,-685.21,0.00024931,2]
[342030747,1731371467649,-529.71,0.00024931,2]
[342030748,1731371467658,-88718.47538497,0.00025,2]
[342030749,1731371517708,155.916,0.0002513,60]
[342030750,1731371519184,156.797,0.000269,60]
[342030752,1731371645433,166.429028,0.00013973,2]
[342030753,1731371657405,221.046899,0.00020383,2]
[342030754,1731371759797,1169.27083333,0.00020845,2]
[342030755,1731371914469,164.283301,0.00020485,2]
[342030757,1731371949119,8858.4632461,0.0002071,2]
[342030762,1731372070870,1169.27083333,0.00020845,2]
[342030781,1731372245385,400.0,0.00020485,2]
[342030782,1731372257052,400.0,0.00020845,2]
[342030783,1731372271698,400.0,0.00020845,3]
[342030788,1731372349960,221.0469008,0.00020683,2]
[342030819,1731372382065,1169.27083333,0.00020845,2]
[342030886,1731372611396,164.283301,0.00020707,2]
[342030928,1731372631979,-300.0,0.00021272,2]
[342030930,1731372631988,-300.0,0.00021272,2]
[342030932,1731372631998,-11133.25438753,0.00021273,2]
[342030934,1731372632007,-638.519884,0.00021373,2]
[342030936,1731372632016,-638.519884,0.00021373,2]
[342030938,1731372632026,-151.0,0.00021373,2]
[342030940,1731372632035,-151.0,0.00021373,2]
[342030942,1731372632044,-151.0,0.00021373,2]
[342030944,1731372632053,-500.0,0.00021615,2]
[342030946,1731372632062,-500.0,0.00021615,2]
[342030948,1731372632071,-500.0,0.00021615,2]
[342030950,1731372632080,-500.0,0.00021615,2]
[342030951,1731372632089,-500.0,0.00021615,2]
[342030955,1731372632108,-500.0,0.00021615,2]
[342030957,1731372632119,-500.0,0.00021615,2]
[342030959,1731372632129,-553.49491995,0.00021615,2]
[342030961,1731372632139,-151.0,0.00021616,2]
[342030963,1731372632149,-638.519884,0.00021616,2]
[342030965,1731372632158,-638.519884,0.00021616,2]
[342030967,1731372632168,-151.0,0.00021616,2]
[342030969,1731372632178,-151.0,0.00021616,2]
[342030971,1731372632188,-151.0,0.00021616,2]
[342030973,1731372632199,-151.0,0.00021616,2]
[342030975,1731372632208,-151.0,0.00021616,2]
[342030977,1731372632219,-1000.0,0.0002169,2]
[342030979,1731372632230,-347.72762158,0.00021716,2]
[342030981,1731372632240,-347.72762156,0.00021741,2]
[342030983,1731372632251,-347.72762156,0.00021767,2]
[342030985,1731372632261,-501.10527432,0.00021773,2]
[342030987,1731372632271,-201.74591296,0.00021773,2]
[342030989,1731372632281,-502.84652768,0.00021773,2]
[342030991,1731372632292,-162.59999248,0.00021773,2]
[342030993,1731372632302,-628.30696876,0.00021773,2]
[342030995,1731372632312,-500.0,0.00021773,2]
[342030997,1731372632322,-500.0,0.00021773,2]
[342030999,1731372632332,-326.37943885,0.00021773,2]
[342031002,1731372632342,-500.0,0.00021773,2]
[342031004,1731372632352,-500.0,0.00021773,2]
[342031006,1731372632361,-500.0,0.00021773,2]
[342031007,1731372632371,-500.0,0.00021773,2]
[342031009,1731372632381,-500.0,0.00021773,2]
[342031011,1731372632392,-530.92247615,0.00021773,2]
[342031013,1731372632402,-500.0,0.00021773,2]
[342031015,1731372632411,-151.0,0.0002178,2]
[342031017,1731372632421,-151.0,0.0002178,2]
[342031019,1731372632430,-151.0,0.0002178,2]
[342031021,1731372632443,-151.0,0.0002178,2]
[342031023,1731372632453,-151.0,0.0002178,2]
[342031025,1731372632463,-152.0,0.00021783,2]
[342031028,1731372632474,-1599.89067653,0.00021789,2]
[342031030,1731372632485,-500.0,0.00021789,2]
[342031032,1731372632494,-500.0,0.00021789,2]
[342031034,1731372632503,-502.25156983,0.00021789,2]
[342031036,1731372632513,-500.0,0.00021789,2]
[342031038,1731372632523,-481.40833789,0.00021789,2]
[342031039,1731372632532,-500.0,0.00021789,2]
[342031042,1731372632541,-500.0,0.00021789,2]
[342031044,1731372632551,-500.0,0.00021789,2]
[342031046,1731372632560,-500.0,0.00021789,2]
[342031048,1731372632570,-500.0,0.00021789,2]
[342031050,1731372632579,-500.0,0.00021789,2]
[342031052,1731372632589,-500.0,0.00021789,2]
[342031054,1731372632599,-304.41356665,0.00021789,2]
[342031056,1731372632608,-96.77752828,0.00021789,2]
[342031058,1731372632622,-403.22247172,0.00021789,2]
[342031060,1731372632632,-500.0,0.00021789,2]
[342031062,1731372632643,-500.0,0.00021789,2]
[342031064,1731372632653,-500.0,0.00021789,2]